bitfinex-derivatives/quotes_ETHF0:USTF0_20230830
["timestamp","ask_amount","ask_price","bid_price","bid_amount"]
[1693421356252,4.75343648,1702.0,1701.9,2.6042]
[1693421357057,10.14941916,1702.0,1701.9,2.6042]
[1693421359157,4.75343648,1702.0,1701.9,2.6042]
[1693421361864,4.75343648,1702.0,1701.9,7.9032]
[1693421362264,4.75343648,1702.0,1701.9,8.11732273]
[1693421369168,4.75343648,1702.0,1701.9,7.9032]
[1693421375179,2.4835,1702.0,1701.9,8.11732273]
[1693421375380,5.85598526,1702.1,1701.9,8.11732273]
[1693421375578,5.85598526,1702.1,1702.0,5.299]
[1693421375873,0.46000258,1702.1,1702.0,5.299]
[1693421376078,7.85978268,1702.2,1702.0,5.299]
[1693421376276,7.85978268,1702.2,1702.1,0.21412273]
[1693421376479,7.85978268,1702.2,1702.1,2.71032273]
[1693421376680,2.4638,1702.2,1702.1,2.71032273]
[1693421378383,3.89738176,1702.2,1702.1,2.71032273]
[1693421378578,3.89738176,1702.2,1702.1,2.4962]
[1693421380187,3.89738176,1702.2,1702.1,2.71032273]
[1693421381589,10.0642191,1702.2,1702.1,2.71032273]
[1693421384491,10.0642191,1702.2,1702.1,2.4962]
[1693421385691,10.0642191,1702.2,1702.1,2.71032273]
[1693421392293,8.63063734,1702.2,1702.1,2.71032273]
[1693421392492,5.39863,1702.2,1702.1,2.71032273]
[1693421394893,6.83221176,1702.2,1702.1,2.71032273]
[1693421396489,16.83221176,1702.2,1702.1,2.71032273]
[1693421397394,15.39863,1702.2,1702.1,2.71032273]
[1693421398699,16.83221176,1702.2,1702.1,2.71032273]
[1693421400103,6.83221176,1702.2,1702.1,2.71032273]
[1693421400300,16.83221176,1702.2,1702.1,2.71032273]
[1693421401999,16.83221176,1702.2,1702.1,8.00932273]
[1693421402604,6.83221176,1702.2,1702.1,8.00932273]
[1693421403803,5.39863,1702.2,1702.1,8.00932273]
[1693421405502,15.39863,1702.2,1702.1,8.00932273]
[1693421408607,5.39863,1702.2,1702.1,8.00932273]
[1693421412608,6.83221176,1702.2,1702.1,8.00932273]
[1693421413010,5.39863,1702.2,1702.1,8.00932273]
[1693421413512,8.50978316,1702.3,1702.1,8.00932273]
[1693421413707,5.86138316,1702.3,1702.2,5.299]
[1693421414909,0.46275316,1702.3,1702.2,5.299]
[1693421415118,5.39863,1702.4,1702.2,5.299]
[1693421415311,5.39863,1702.4,1702.3,7.74]
[1693421415502,2.26993648,1702.4,1702.3,7.95412273]
[1693421415911,8.85609183,1702.5,1702.3,7.95412273]
[1693421416113,1.43358176,1702.4,1702.3,7.95412273]
[1693421416509,8.85609183,1702.5,1702.3,7.95412273]
[1693421417311,9.33663076,1702.5,1702.3,7.95412273]
[1693421421915,9.33663076,1702.5,1702.4,5.299]
[1693421423011,10.77021252,1702.5,1702.4,5.299]
[1693421428025,3.04763893,1702.5,1702.4,5.299]
[1693421433132,8.44626893,1702.5,1702.4,5.299]
[1693421433427,3.04763893,1702.5,1702.4,5.299]
[1693421442839,8.44626893,1702.5,1702.4,5.299]
[1693421443336,3.04763893,1702.5,1702.4,5.299]
[1693421444038,8.44626893,1702.5,1702.4,5.299]
[1693421445939,9.87985069,1702.5,1702.4,5.299]
[1693421449143,3.04763893,1702.5,1702.4,5.299]
[1693421450342,4.48122069,1702.5,1702.4,5.299]
[1693421450545,9.87985069,1702.5,1702.4,5.299]
[1693421450939,4.48122069,1702.5,1702.4,5.299]
[1693421451447,10.64805803,1702.5,1702.4,5.299]
[1693421457049,17.58575004,1702.5,1702.4,5.299]
[1693421457444,11.4189127,1702.5,1702.4,5.299]
[1693421461854,11.4189127,1702.5,1702.2,5.299]
[1693421462056,5.39505799,1702.3,1702.2,5.299]
[1693421462353,5.39505799,1702.3,1702.2,5.51312273]
[1693421463454,6.82863975,1702.3,1702.2,5.51312273]
[1693421465762,1.43358176,1702.3,1702.2,5.51312273]
[1693421466262,7.66499447,1702.4,1702.2,5.51312273]
[1693421467062,9.09857623,1702.4,1702.2,5.51312273]
[1693421468660,7.66499447,1702.4,1702.2,5.51312273]
[1693421468864,5.39505799,1702.4,1702.2,5.51312273]
[1693421469061,5.39505799,1702.4,1702.3,2.6466]
[1693421470269,5.39505799,1702.4,1702.3,7.9456]
[1693421474275,6.82863975,1702.4,1702.3,7.9456]
[1693421474576,5.39505799,1702.4,1702.3,7.9456]
[1693421476477,6.82863975,1702.4,1702.3,7.9456]
[1693421479082,1.43358176,1702.4,1702.3,7.9456]
[1693421480687,10.71117252,1702.5,1702.3,7.9456]
[1693421481389,12.14475428,1702.5,1702.3,7.9456]
[1693421482388,5.39359711,1702.4,1702.3,7.9456]
[1693421489292,5.87413604,1702.5,1702.3,7.9456]
[1693421489594,5.87413604,1702.5,1702.4,0.21412273]
[1693421491696,7.3077178,1702.5,1702.4,0.21412273]
[1693421491886,7.3077178,1702.5,1702.4,5.51312273]
[1693421492694,5.87413604,1702.5,1702.4,5.51312273]
[1693421498001,7.3077178,1702.5,1702.4,5.51312273]
[1693421498296,5.87413604,1702.5,1702.4,5.51312273]
[1693421500799,7.3077178,1702.5,1702.4,5.51312273]
[1693421502007,7.3077178,1702.5,1702.4,5.299]
[1693421504613,7.3077178,1702.5,1702.4,5.51312273]
[1693421504806,5.87413604,1702.5,1702.4,5.51312273]
[1693421505008,7.3077178,1702.5,1702.4,5.51312273]
[1693421506309,7.3077178,1702.5,1702.4,5.299]
[1693421507713,7.3077178,1702.5,1702.4,5.51312273]
[1693421508513,7.3077178,1702.5,1702.4,5.299]
[1693421512515,7.3077178,1702.5,1702.4,5.51312273]
[1693421514416,7.3077178,1702.5,1702.4,5.299]
[1693421514911,7.3077178,1702.5,1702.4,5.51312273]
[1693421519622,7.3077178,1702.5,1702.4,5.299]
[1693421522320,7.3077178,1702.5,1702.4,5.51312273]
[1693421523923,5.87413604,1702.5,1702.4,5.51312273]
[1693421525418,5.87413604,1702.5,1702.4,5.299]
[1693421525624,7.3077178,1702.5,1702.4,5.299]
[1693421526127,7.3077178,1702.5,1702.4,5.51312273]
[1693421526817,5.87413604,1702.5,1702.4,5.51312273]
[1693421531927,5.87413604,1702.5,1702.4,0.21412273]
[1693421532428,0.48053893,1702.5,1702.4,0.21412273]
[1693421532627,11.91498546,1702.6,1702.4,0.21412273]
[1693421533129,11.91498546,1702.6,1702.5,2.4045]
[1693421533528,13.34856722,1702.6,1702.5,2.4045]
[1693421533728,13.35455541,1702.6,1702.5,2.4045]
[1693421534425,7.19044442,1702.6,1702.5,2.4045]
[1693421534632,7.66889081,1702.6,1702.5,2.4045]
[1693421536730,14.60953705,1702.6,1702.5,2.4045]
[1693421537228,7.66889081,1702.6,1702.5,2.4045]
[1693421537632,14.60953705,1702.6,1702.5,2.4045]
[1693421538434,14.60953705,1702.6,1702.3,5.299]
[1693421538634,5.39874618,1702.4,1702.2,7.7691]
[1693421538931,1.43358176,1702.3,1702.2,7.7691]
[1693421539341,1.43358176,1702.3,1702.2,7.98322273]
[1693421541526,1.43358176,1702.3,1702.2,7.7691]
[1693421546534,6.83232794,1702.3,1702.2,7.7691]
[1693421553239,7.30271145,1702.3,1702.2,7.7691]
[1693421554542,1.90396527,1702.3,1702.2,7.7691]
[1693421556042,1.90396527,1702.3,1702.2,7.98322273]
[1693421557640,0.47038351,1702.3,1702.2,7.98322273]
[1693421557847,10.15648266,1702.4,1702.2,7.98322273]
[1693421559042,11.59006442,1702.4,1702.2,7.98322273]
[1693421561356,10.15648266,1702.4,1702.2,7.98322273]
[1693421564354,11.59006442,1702.4,1702.2,7.98322273]
[1693421564960,12.05569801,1702.4,1702.2,7.98322273]
[1693421580377,12.05569801,1702.4,1702.2,2.68422273]
[1693421582479,12.05569801,1702.4,1702.2,2.4701]
[1693421583073,5.39874618,1702.3,1702.2,2.4701]
[1693421584078,5.39874618,1702.3,1702.2,2.68422273]
[1693421585884,5.39874618,1702.3,1702.2,2.4701]
[1693421587981,5.39874618,1702.3,1702.2,2.68422273]
[1693421589487,5.39874618,1702.3,1702.2,2.4701]
[1693421604505,10.69774618,1702.3,1701.9,9.27962287]
[1693421604705,7.66868266,1702.2,1701.9,7.7413]
[1693421604900,6.73258176,1702.1,1702.0,2.6392]
[1693421605503,12.13132794,1702.1,1702.0,2.6392]
[1693421605804,6.73258176,1702.1,1702.0,2.6392]
[1693421607301,1.43358176,1702.1,1702.0,2.6392]
[1693421607501,1.43358176,1702.1,1702.0,2.85332273]
[1693421607707,2.6187,1702.2,1702.0,8.15232273]
[1693421608209,5.39874618,1702.3,1702.0,8.15232273]
[1693421619819,7.66868266,1702.3,1702.0,8.15232273]
[1693421621917,5.39874618,1702.3,1702.0,8.15232273]
[1693421628021,5.39874618,1702.3,1702.2,5.299]
[1693421628422,5.39874618,1702.3,1702.2,5.51312273]
[1693421629126,8.34307977,1702.4,1702.2,5.51312273]
[1693421636129,8.34134124,1702.4,1702.2,5.51312273]
[1693421643037,1.43358176,1702.3,1702.2,5.299]
[1693421643836,1.43358176,1702.3,1702.2,5.51312273]
[1693421644438,8.34134124,1702.4,1702.2,5.51312273]
[1693421646836,2.94433359,1702.4,1702.2,5.51312273]
[1693421647239,8.3400846,1702.4,1702.2,5.51312273]
[1693421647540,2.94433359,1702.4,1702.2,5.51312273]
[1693421652745,8.3400846,1702.4,1702.2,5.51312273]
[1693421652941,8.3400846,1702.4,1702.3,2.4099]
[1693421654044,9.77366636,1702.4,1702.3,2.4099]
[1693421655457,8.3400846,1702.4,1702.3,2.4099]
[1693421656155,9.77366636,1702.4,1702.3,2.4099]
[1693421659258,4.37791535,1702.4,1702.3,2.4099]
[1693421660358,2.94433359,1702.4,1702.2,5.51312273]
[1693421660560,2.94433359,1702.4,1702.3,2.5124]
[1693421671269,4.37791535,1702.4,1702.3,2.5124]
[1693421674669,9.77366636,1702.4,1702.3,2.5124]
[1693421674867,8.3400846,1702.4,1702.3,2.5124]
[1693421675673,9.77366636,1702.4,1702.3,2.5124]
[1693421682479,8.3400846,1702.4,1702.3,2.5124]
[1693421685674,2.94433359,1702.4,1702.3,2.5124]
[1693421687181,8.34284622,1702.4,1702.3,2.5124]
[1693421687371,2.94433359,1702.4,1702.3,2.5124]
[1693421689571,8.34284622,1702.4,1702.3,2.5124]
[1693421693481,9.77642798,1702.4,1702.3,2.5124]
[1693421699283,9.77642798,1702.4,1702.3,2.72652273]
[1693421700186,8.34284622,1702.4,1702.3,2.72652273]
[1693421704087,5.86414622,1702.4,1702.3,2.72652273]
[1693421704290,0.46563359,1702.4,1702.3,8.02552273]
[1693421704489,12.81790383,1702.6,1702.3,13.32452273]
[1693421704785,0.47844639,1702.6,1702.5,5.299]
[1693421704983,5.39851263,1702.7,1702.5,5.51312273]
[1693421705183,8.00541263,1702.8,1702.6,5.299]
[1693421705385,8.89886907,1702.8,1702.7,0.21412273]
[1693421705886,9.36658554,1702.8,1702.7,0.21412273]
[1693421707087,9.36082819,1702.8,1702.7,0.21412273]
[1693421707995,0.46771647,1702.8,1702.7,5.51312273]
[1693421708292,5.08777618,1702.8,1702.7,5.51312273]
[1693421709894,0.46771647,1702.8,1702.7,5.51312273]
[1693421713494,0.00507754,1702.8,1702.7,5.51312273]
[1693421713791,7.05005971,1703.1,1702.7,5.51312273]
[1693421713985,7.05005971,1703.1,1703.0,5.299]
[1693421714192,2.43,1703.1,1703.0,5.51312273]
[1693421714794,2.90379625,1703.1,1703.0,5.51312273]
[1693421718397,0.47379625,1703.1,1703.0,5.51312273]
[1693421718603,7.03265971,1703.7,1703.0,5.51312273]
[1693421718907,2.0252,1703.6,1703.0,6.80125157]
[1693421719200,4.62005971,1704.0,1703.5,5.299]
[1693421719494,5.299,1704.1,1703.8,5.299]
[1693421719702,7.56893648,1704.1,1703.9,0.21412273]
[1693421719902,0.0044352,1704.0,1703.9,0.21412273]
[1693421721696,0.0044352,1704.0,1703.9,5.51312273]
[1693421722798,7.7612,1704.2,1703.9,5.51312273]
[1693421722995,10.03113648,1704.2,1703.9,5.51312273]
[1693421723302,1.43358176,1704.1,1703.9,5.51312273]
[1693421723799,0.00425386,1704.0,1703.9,5.51312273]
[1693421724104,2.27419034,1704.0,1703.8,5.30780307]
[1693421724306,1.43358176,1703.9,1703.8,5.30780307]
[1693421724596,1.43358176,1703.9,1703.8,5.5219258]
[1693421724800,0.00424641,1703.9,1703.8,5.5219258]
[1693421725401,1.43782817,1703.9,1703.8,0.2229258]
[1693421725702,1.43782817,1703.9,1703.8,0.00880307]
[1693421726004,4.05442817,1703.9,1703.8,0.00880307]
[1693421727802,4.05442817,1703.9,1703.8,0.2229258]
[1693421727998,4.05442817,1703.9,1703.8,0.00880307]
[1693421731101,4.05442817,1703.9,1703.8,5.30780307]
[1693421731305,2.62084641,1703.9,1703.8,5.5219258]
[1693421732403,4.05442817,1703.9,1703.8,5.5219258]
[1693421732909,2.62084641,1703.9,1703.8,5.5219258]
[1693421733808,4.05442817,1703.9,1703.8,5.30780307]
[1693421734203,4.05442817,1703.9,1703.8,5.5219258]
[1693421735608,2.62084641,1703.9,1703.8,5.5219258]
[1693421739212,3.08656523,1703.9,1703.8,5.5219258]
[1693421740807,4.52014699,1703.9,1703.8,5.5219258]
[1693421741113,3.08656523,1703.9,1703.8,5.5219258]
[1693421745409,1.36317558,1704.2,1703.9,0.41097739]
[1693421745622,0.88552559,1704.5,1704.4,5.299]
[1693421745816,14.17,1704.8,1704.4,10.598]
[1693421746114,10.0,1704.6,1704.4,5.299]
[1693421746309,0.588,1704.8,1704.5,5.299]
[1693421746512,23.582,1705.1,1704.7,5.299]
[1693421746706,2.87951213,1705.0,1704.9,5.299]
[1693421746914,4.31309355,1705.0,1704.9,5.299]
[1693421747312,4.31309355,1705.0,1704.8,5.299]
[1693421747513,10.60957531,1704.9,1704.6,5.299]
[1693421747716,4.31309355,1704.8,1704.6,5.299]
[1693421747911,4.29151824,1704.8,1704.6,5.299]
[1693421748611,4.29151824,1704.8,1704.7,0.00879816]
[1693421748927,4.31309532,1704.8,1704.7,0.00879816]
[1693421749713,2.04315884,1704.8,1704.7,0.22292089]
[1693421749911,0.60957708,1704.8,1704.7,0.22292089]
[1693421750217,2.04315884,1704.8,1704.7,0.00879816]
[1693421750518,2.04315884,1704.8,1704.7,0.22292089]
[1693421750714,7.34215884,1704.8,1704.7,0.00879816]
[1693421751410,10.0,1704.6,1704.3,5.299]
[1693421751615,1.43358176,1704.5,1704.3,5.299]
[1693421751816,10.0,1704.4,1704.3,5.299]
[1693421752016,19.00251824,1704.4,1704.1,5.299]
[1693421752406,13.70351824,1704.4,1704.3,5.299]
[1693421753113,13.70351824,1704.4,1704.3,5.51312273]
[1693421753817,13.70818478,1704.4,1704.3,5.51312273]
[1693421754213,13.70818478,1704.4,1704.3,5.299]
[1693421758921,13.70818478,1704.4,1704.3,5.51312273]
[1693421759320,12.27460302,1704.4,1704.3,5.51312273]
[1693421760022,13.70818478,1704.4,1704.3,5.51312273]
[1693421761017,13.70818478,1704.4,1704.3,5.299]
[1693421761413,13.70818478,1704.4,1704.2,5.299]
[1693421761617,10.0,1704.2,1704.1,5.299]
[1693421761821,13.70351824,1704.2,1704.1,5.299]
[1693421762317,13.70351824,1704.2,1704.0,7.7071]
[1693421762719,0.00463415,1704.1,1704.0,7.7071]
[1693421762918,0.00463415,1704.1,1704.0,7.92122273]
[1693421763817,13.70351824,1704.2,1704.0,7.92122273]
[1693421764222,13.70351824,1704.2,1704.0,9.44087316]
[1693421764421,13.70351824,1704.2,1704.0,9.22675043]
[1693421764823,0.00463415,1704.1,1704.0,9.22675043]
[1693421765027,0.00463415,1704.1,1704.0,9.44087316]
[1693421765520,0.00463415,1704.1,1704.0,9.22675043]
[1693421765720,13.70351824,1704.2,1704.0,9.44087316]
[1693421766719,0.00463415,1704.1,1704.0,9.44087316]
[1693421767723,13.70351824,1704.2,1704.0,9.44087316]
[1693421768119,13.70351824,1704.2,1704.0,9.22675043]
[1693421768526,14.16920151,1704.2,1704.0,9.22675043]
[1693421768826,0.00463666,1704.1,1704.0,9.22675043]
[1693421769217,0.00463666,1704.1,1704.0,7.92122273]
[1693421769830,14.16920151,1704.2,1704.0,7.92122273]
[1693421770721,0.0046354,1704.1,1704.0,7.92122273]
[1693421771129,0.0046354,1704.1,1704.0,2.4081]
[1693421771728,19.46820151,1704.2,1704.0,2.4081]
[1693421772932,0.00463037,1704.1,1704.0,2.4081]
[1693421773429,0.00463037,1704.1,1704.0,7.92122273]
[1693421773822,0.00463037,1704.1,1704.0,7.7071]
[1693421773823,1.43358176,1704.1,1704.0,7.7071]
[1693421774726,1.4382004,1704.1,1704.0,7.7071]
[1693421774929,1.4382004,1704.1,1704.0,7.92122273]
[1693421775930,1.4382004,1704.1,1704.0,7.7071]
[1693421776533,0.00461864,1704.1,1704.0,7.92122273]
[1693421776831,10.46568327,1704.2,1704.0,7.92122273]
[1693421777025,11.89926503,1704.2,1704.0,7.92122273]
[1693421777420,14.16920151,1704.2,1704.0,7.92122273]
[1693421777827,0.00461864,1704.1,1704.0,7.92122273]
[1693421778836,18.75205173,1704.2,1704.0,7.92122273]
[1693421779631,18.75205173,1704.2,1704.0,7.7071]
[1693421779836,0.0046199,1704.1,1704.0,7.7071]
[1693421780936,14.16920151,1704.2,1704.0,7.92122273]
[1693421781635,14.16920151,1704.2,1704.0,7.7071]
[1693421781835,0.00461864,1704.1,1704.0,7.7071]
[1693421782739,14.16920151,1704.2,1704.0,7.7071]
[1693421783945,0.00461864,1704.1,1704.0,2.4081]
[1693421784836,23.31189257,1704.2,1704.0,2.4081]
[1693421785841,0.00461864,1704.1,1704.0,2.4081]
[1693421786841,23.31189257,1704.2,1704.0,2.4081]
[1693421787545,4.61242927,1704.1,1704.0,2.4081]
[1693421787741,4.61704791,1704.1,1704.0,2.4081]
[1693421790953,4.61704791,1704.1,1704.0,2.62222273]
[1693421791157,4.61704791,1704.1,1704.0,7.92122273]
[1693421791957,0.00461864,1704.1,1704.0,7.92122273]
[1693421792954,5.07811254,1704.2,1704.0,7.92122273]
[1693421793151,5.07811254,1704.2,1704.1,5.299]
[1693421793353,5.84685076,1704.2,1704.1,5.299]
[1693421793854,5.85147468,1704.2,1704.1,5.299]
[1693421795157,7.28505644,1704.2,1704.1,5.299]
[1693421796359,1.90388895,1704.2,1704.1,5.299]
[1693421796653,1.90388895,1704.2,1704.0,7.7071]
[1693421796848,7.65853534,1704.1,1704.0,7.7071]
[1693421797762,7.66314937,1704.1,1704.0,7.7071]
[1693421798957,7.66314937,1704.1,1704.0,2.4081]
[1693421799158,8.42445621,1704.1,1704.0,2.4081]
[1693421800762,10.84395621,1704.1,1704.0,2.4081]
[1693421802162,10.84395621,1704.1,1703.9,5.3078023]
[1693421802361,6.82377452,1704.0,1703.9,7.8330023]
[1693421802753,5.39482371,1704.0,1703.9,8.04712503]
[1693421805162,0.00463095,1704.0,1703.9,8.04712503]
[1693421805559,4.62478416,1704.0,1703.9,8.04712503]
[1693421806663,6.05836592,1704.0,1703.9,8.04712503]
[1693421806864,4.62478416,1704.0,1703.9,8.04712503]
[1693421808667,6.05836592,1704.0,1703.9,8.04712503]
[1693421809663,4.62478416,1704.0,1703.9,8.04712503]
[1693421811170,6.05836592,1704.0,1703.9,8.04712503]
[1693421811468,4.62478416,1704.0,1703.9,8.04712503]
[1693421815474,5.09489707,1704.0,1703.9,8.04712503]
[1693421820978,6.52847883,1704.0,1703.9,8.04712503]
[1693421821277,5.09489707,1704.0,1703.9,8.04712503]
[1693421822480,6.52847883,1704.0,1703.9,7.8330023]
[1693421822875,8.95517883,1704.0,1703.9,7.8330023]
[1693421824385,7.52159707,1704.0,1703.9,8.04712503]
[1693421824580,0.47474386,1704.0,1703.9,8.04712503]
[1693421824889,0.47474386,1704.0,1703.9,13.34612503]
[1693421825881,0.00463095,1704.0,1703.9,19.59727635]
[1693421826085,0.46568327,1704.2,1703.9,19.59727635]
[1693421826277,4.62015321,1704.3,1704.1,5.299]
[1693421826475,6.05373497,1704.3,1704.2,5.299]
[1693421826885,6.05798594,1704.3,1704.2,5.51312273]
[1693421827782,6.53151408,1704.3,1704.2,5.51312273]
[1693421828185,5.09793232,1704.3,1704.2,5.51312273]
[1693421828488,6.53151408,1704.3,1704.2,5.51312273]
[1693421829186,5.09793232,1704.3,1704.2,5.51312273]
[1693421829490,6.53151408,1704.3,1704.2,5.51312273]
[1693421829886,5.09793232,1704.3,1704.2,5.51312273]
[1693421830489,6.53151408,1704.3,1704.2,5.51312273]
[1693421830989,5.09793232,1704.3,1704.2,5.51312273]
[1693421831488,6.53151408,1704.3,1704.2,5.51312273]
[1693421831892,0.47777911,1704.3,1704.2,5.51312273]
[1693421832593,5.09793232,1704.3,1704.2,5.51312273]
[1693421833390,6.53151408,1704.3,1704.2,5.51312273]
[1693421834792,5.09793232,1704.3,1704.2,5.51312273]
[1693421837991,4.62015321,1704.5,1704.2,5.51312273]
[1693421838191,4.62015321,1704.6,1704.4,10.598]
[1693421838394,7.25805321,1704.7,1704.5,5.51312273]
[1693421838694,4.62015321,1704.7,1704.6,5.299]
[1693421839089,5.08822456,1704.7,1704.6,5.299]
[1693421839494,4.62015321,1704.7,1704.6,5.299]
[1693421840089,6.05373497,1704.7,1704.6,5.299]
[1693421840292,5.09663162,1704.8,1704.6,5.299]
[1693421840486,5.09663162,1704.8,1704.5,2.61602273]
[1693421840487,5.09663162,1704.8,1704.5,2.4019]
[1693421840690,1.43358176,1704.7,1704.5,2.4019]
[1693421840892,1.43358176,1704.7,1704.6,5.51312273]
[1693421841092,5.09663162,1704.8,1704.6,5.51312273]
[1693421841292,5.09663162,1704.8,1704.7,5.299]
[1693421841495,6.53021338,1704.8,1704.7,5.299]
[1693421841896,1.91006017,1704.8,1704.7,5.299]
[1693421842096,4.52716017,1704.8,1704.7,5.299]
[1693421843800,3.09357841,1704.8,1704.7,5.299]
[1693421844197,4.52716017,1704.8,1704.7,5.299]
[1693421845799,4.53114419,1704.8,1704.7,5.299]
[1693421848100,0.48046243,1704.8,1704.7,5.299]
[1693421848291,0.48046243,1704.8,1704.7,7.7388]
[1693421849403,0.00398402,1704.8,1704.7,7.7388]
[1693421849698,15.89979133,1705.2,1704.7,7.7388]
[1693421849901,15.89979133,1705.2,1705.1,5.299]
[1693421850208,19.60330957,1705.2,1705.1,5.299]
[1693421850504,17.13380957,1705.2,1705.1,5.299]
[1693421850698,17.13782182,1705.2,1705.1,5.299]
[1693421851301,7.13782182,1705.2,1705.1,5.299]
[1693421851498,7.5970549,1705.2,1705.1,5.299]
[1693421851698,17.5970549,1705.2,1705.1,5.299]
[1693421851894,16.16347314,1705.2,1705.1,0.21412273]
[1693421852104,7.5970549,1705.2,1705.1,0.21412273]
[1693421852403,7.5970549,1705.2,1705.0,5.299]
[1693421852404,5.32711842,1705.2,1705.0,5.299]
[1693421852901,5.32711842,1705.2,1705.0,5.51312273]
[1693421855003,3.89353666,1705.2,1705.0,5.51312273]
[1693421855204,13.89353666,1705.2,1705.0,5.51312273]
[1693421855704,15.32711842,1705.2,1705.0,5.51312273]
[1693421857899,5.32711842,1705.2,1705.0,5.51312273]
[1693421858095,15.32711842,1705.2,1705.0,5.51312273]
[1693421858798,2.26993648,1705.1,1705.0,5.299]
[1693421859899,2.27394387,1705.1,1705.0,5.299]
[1693421860303,2.27394387,1705.1,1705.0,5.51312273]
[1693421860704,2.27394387,1705.1,1705.0,5.299]
[1693421861106,2.27394387,1705.1,1705.0,5.51312273]
[1693421861905,0.00400739,1705.1,1705.0,5.51312273]
[1693421862805,13.01763308,1705.2,1705.0,5.51312273]
[1693421863000,14.45121484,1705.2,1705.0,5.51312273]
[1693421863505,13.01763308,1705.2,1705.0,5.51312273]
[1693421863897,0.00400865,1705.1,1705.0,5.51312273]
[1693421864903,3.01763308,1705.2,1705.0,5.51312273]
[1693421865804,3.01763308,1705.2,1705.1,5.299]
[1693421866309,0.45923308,1705.2,1705.1,5.299]
[1693421866501,15.1769,1705.4,1705.1,5.299]
[1693421866699,15.1769,1705.4,1705.3,5.299]
[1693421867098,12.5418,1705.4,1705.3,5.51312273]
[1693421867803,13.97538176,1705.4,1705.3,5.51312273]
[1693421868408,12.5418,1705.4,1705.3,5.51312273]
[1693421869011,13.40807824,1705.4,1705.3,5.51312273]
[1693421869505,13.86840352,1705.4,1705.3,5.44659721]
[1693421869906,15.30198528,1705.4,1705.3,5.44659721]
[1693421870311,13.86840352,1705.4,1705.3,5.44659721]
[1693421871002,13.86840352,1705.4,1705.3,0.21412273]
[1693421872010,1.32660352,1705.4,1705.3,5.51312273]
[1693421872302,2.5543,1705.5,1705.3,5.51312273]
[1693421872506,2.5543,1705.5,1705.4,5.299]
[1693421873309,10.0,1705.6,1705.4,5.299]
[1693421873511,10.48095664,1705.6,1705.5,5.51312273]
[1693421873709,11.9145384,1705.6,1705.5,5.299]
[1693421874208,0.48095664,1705.6,1705.5,5.51312273]
[1693421874408,15.0906,1706.1,1705.5,5.51312273]
[1693421874608,20.3896,1706.1,1705.8,5.299]
[1693421875318,2.26993648,1706.0,1705.9,0.21412273]
[1693421875711,3.70351824,1706.0,1705.8,5.299]
[1693421876111,10.0,1705.8,1705.2,1.53015812]
[1693421876312,10.0,1705.8,1705.7,5.299]
[1693421876514,13.70351824,1705.8,1705.7,5.299]
[1693421878007,13.70351824,1705.8,1705.7,5.51312273]
[1693421878811,13.70351824,1705.8,1705.7,5.299]
[1693421879018,10.0,1705.8,1705.7,5.51312273]
[1693421879218,11.43358176,1705.8,1705.7,5.51312273]
[1693421879520,11.43358176,1705.8,1705.7,5.299]
[1693421879820,1.43358176,1705.8,1705.7,5.299]
[1693421880119,11.43358176,1705.8,1705.7,5.51312273]
[1693421880327,1.43358176,1705.8,1705.7,5.51312273]
[1693421880529,1.43358176,1705.8,1705.7,5.299]
[1693421880732,11.43358176,1705.8,1705.7,5.299]
[1693421880925,11.43358176,1705.8,1705.7,5.51312273]
[1693421881326,10.0,1705.8,1705.7,5.51312273]
[1693421881526,11.43358176,1705.8,1705.7,5.299]
[1693421881826,1.43358176,1705.8,1705.7,5.299]
[1693421882030,11.43358176,1705.8,1705.7,5.299]
[1693421882221,11.43358176,1705.8,1705.7,5.51312273]
[1693421882424,11.43358176,1705.8,1705.7,5.299]
[1693421882620,16.73258176,1705.8,1705.5,5.299]
[1693421882921,2.26993648,1705.7,1705.6,0.21412273]
[1693421883130,2.26993648,1705.7,1705.6,2.5547]
[1693421884134,11.43358176,1705.8,1705.6,8.06782273]
[1693421885427,2.26993648,1705.7,1705.6,5.299]
[1693421886422,2.26993648,1705.7,1705.6,5.51312273]
[1693421886928,11.43358176,1705.8,1705.6,5.51312273]
[1693421888233,11.90572428,1705.8,1705.6,5.51312273]
[1693421888729,14.39562428,1705.8,1705.6,5.51312273]
[1693421888931,0.00386108,1705.7,1705.6,5.51312273]
[1693421890035,0.00386108,1705.7,1705.6,5.299]
[1693421890335,2.27379756,1705.7,1705.6,5.299]
[1693421890727,1.43358176,1705.6,1705.0,3.82539531]
[1693421890933,10.0,1705.4,1705.2,5.299]
[1693421891330,1.43358176,1705.3,1705.2,5.299]
[1693421891629,1.43358176,1705.3,1705.2,5.51312273]
[1693421891835,1.43741588,1705.3,1705.2,5.299]
[1693421892529,1.43741588,1705.3,1705.0,7.7458]
[1693421892733,2.26993648,1705.2,1705.0,7.7458]
[1693421892932,1.43358176,1705.1,1705.0,7.7458]
[1693421893132,1.43358176,1705.1,1705.0,7.95992273]
[1693421893334,1.43358176,1705.1,1705.0,7.7458]
[1693421893736,1.43740114,1705.1,1705.0,7.7458]
[1693421893936,1.43740114,1705.1,1705.0,7.95992273]
[1693421894235,1.43740114,1705.1,1705.0,7.7458]
[1693421895126,0.00381938,1705.1,1705.0,7.95992273]
[1693421895537,1.43740114,1705.1,1705.0,7.95992273]
[1693421895734,1.43740114,1705.1,1705.0,7.7458]
[1693421896034,10.0,1705.0,1704.8,5.299]
[1693421896236,3.70351824,1704.9,1704.8,5.299]
[1693421896832,3.70717501,1704.9,1704.8,5.299]
[1693421897032,3.70717501,1704.9,1704.7,7.7486]
[1693421897234,6.17067501,1704.9,1704.7,7.7486]
[1693421899229,6.17067501,1704.9,1704.7,7.96272273]
[1693421901139,6.17067501,1704.9,1704.7,7.7486]
[1693421905839,6.17067501,1704.9,1704.7,7.96272273]
[1693421907141,6.17067501,1704.9,1704.7,7.7486]
[1693421908143,6.17067501,1704.9,1704.7,7.96272273]
[1693421908342,6.17067501,1704.9,1704.7,7.7486]
[1693421908941,11.46967501,1704.9,1704.7,2.4496]
[1693421909145,10.0,1704.8,1704.7,2.4496]
[1693421909942,10.00367325,1704.8,1704.7,2.4496]
[1693421912143,10.00367325,1704.8,1704.7,2.66372273]
[1693421913253,10.00367325,1704.8,1704.7,7.96272273]
[1693421914443,10.00367325,1704.8,1704.7,7.7486]
[1693421915544,10.00367325,1704.8,1704.7,7.96272273]
[1693421915850,10.00367325,1704.8,1704.7,7.7486]
[1693421916551,10.00367325,1704.8,1704.7,7.96272273]